Department,Entity,Payment date,Transaction Number,Invoice Amount,Supplier ,Account Description
FCO,FCO,02/01/2015,"4,907,375","35,037.72",BRITISH CHAMBER OF COMMERCE FOR MOROCCO,UKTI HQ Allocation- DSO
FCO,FCO,02/01/2015,"4,907,786","133,343.90",ALPHA ARMOURING PANZERUNG GMBH,Assets Under Construction (Oracle PA Control Account)
FCO,FCO,02/01/2015,"4,907,789","135,725.10",ALPHA ARMOURING PANZERUNG GMBH,Assets Under Construction (Oracle PA Control Account)
FCO,FCO,02/01/2015,"4,909,332","781,015",BOUYGUES CONSTRUCTION NIGERIA LIMITED,Assets Under Construction (Oracle PA Control Account)
FCO,FCO,02/01/2015,"4,909,383","178,675",DE LA RUE INTERNATIONAL LTD TA DE LA RUE IDENTITY SYSTEMS,Information Systems Maintenance
FCO,FCO,02/01/2015,"4,909,466","33,580",CARBON TRUST ADVISORY LTD,Programme Spend (Oracle Projects Control Account)
FCO,FCO,02/01/2015,"4,909,475","132,382",NATIONAL ASSEMBLY FOR WALES,Health And Safety
FCO,FCO,02/01/2015,"4,909,485","62,731.67",QUINTESSENTIALLY LIFESTYLE UK LTD,Programme Spend (Oracle Projects Control Account)
FCO,FCO,02/01/2015,"4,909,571","29,190",PACE FUELCARE LIMITED,Fuel Oil Non-Residential
FCO,FCO,02/01/2015,"4,909,625","373,080",MEXICHEM UK LTD,Programme Spend (Oracle Projects Control Account)
FCO,FCO,05/01/2015,"4,904,075","34,861.06",Peoples Action for Free and Fair Elections PAFFREL,Programme Spend (Oracle Projects Control Account)
FCO,FCO,05/01/2015,"4,905,599","25,867.99",CHINA SHENZHEN EMISSION EXCHANGE CO. LTD.,Programme Spend (Oracle Projects Control Account)
FCO,FCO,05/01/2015,"4,906,229","101,980",POWER ELECTRICS GENERATORS LTD,Assets Under Construction (Oracle PA Control Account)
FCO,FCO,05/01/2015,"4,907,016","48,808.47",JAGUAR LAND ROVER OSLO,Assets Under Construction (Oracle PA Control Account)
FCO,FCO,05/01/2015,"4,907,022","32,413.64",JAGUAR LAND ROVER OSLO,Assets Under Construction (Oracle PA Control Account)
FCO,FCO,05/01/2015,"4,908,914","26,980.26",SEHED FASAD AB,Construction Project more than £10k
FCO,FCO,05/01/2015,"4,909,333","394,318.10",STRUCTURE TONE SOUTHWEST INC,Assets Under Construction (Oracle PA Control Account)
FCO,FCO,05/01/2015,"4,910,232","30,181.84",AKTIS STRATEGY,Programme Spend (Oracle Projects Control Account)
FCO,FCO,05/01/2015,"4,910,244","58,928.65",AKTIS STRATEGY,Programme Spend (Oracle Projects Control Account)
FCO,FCO,05/01/2015,"4,910,248","49,932.81",AKTIS STRATEGY,Programme Spend (Oracle Projects Control Account)
FCO,FCO,05/01/2015,"4,910,298","50,835.62",MACE INTERNATIONAL UK LIMITED,Assets Under Construction (Oracle PA Control Account)
FCO,FCO,05/01/2015,"4,910,341","58,734.56",HERAS NORGE AS,Security: Works Residential
FCO,FCO,05/01/2015,"4,910,346","32,824.65",RTKL-UK LTD,Assets Under Construction (Oracle PA Control Account)
FCO,FCO,05/01/2015,"4,910,349","109,165.40",ADAM SMITH INTERNATIONAL,Programme Spend (Oracle Projects Control Account)
FCO,FCO,05/01/2015,"4,910,350","32,757",CONCERN WORLDWIDE,Programme Spend (Oracle Projects Control Account)
FCO,FCO,05/01/2015,"4,910,358","142,234",MERCY CORPS,Programme Spend (Oracle Projects Control Account)
FCO,FCO,05/01/2015,"4,910,369","30,519.21",GLOBAL PARTNERS GOVERNANCE PRACTICE LTD,Programme Spend (Oracle Projects Control Account)
FCO,FCO,06/01/2015,"4,894,222","33,414.72",DIPLOMAT FREIGHT SERVICES LTD(DFS),Programme Spend (Oracle Projects Control Account)
FCO,FCO,06/01/2015,"4,901,090","32,432.43",CJTF COMMUNICATION DEPT,Programme Spend (Oracle Projects Control Account)
FCO,FCO,06/01/2015,"4,903,195","26,789.34",MEDIA DIVERSITY INSTITUTE,Programme Spend (Oracle Projects Control Account)
FCO,FCO,06/01/2015,"4,908,149","45,084.26",MCN PROJECTS,Programme Spend (Oracle Projects Control Account)
FCO,FCO,06/01/2015,"4,908,583","26,080",DIPLOMATIC MISSION SUPPLIES LTD,"Purchase of Furniture, Fittings and Domestic Appliances"
FCO,FCO,06/01/2015,"4,909,528","27,605.72",TOYOTA EAST AFRICA LTD,Assets Under Construction (Oracle PA Control Account)
FCO,FCO,06/01/2015,"4,909,566","32,900",JORDAN AND BATEMAN ARCHITECTS,Assets Under Construction (Oracle PA Control Account)
FCO,FCO,06/01/2015,"4,909,866","40,364.37",SAYARA MEDIA COMMUNICATION,Programme Spend (Oracle Projects Control Account)
FCO,FCO,06/01/2015,"4,910,413","76,475",WORLDREACH SOFTWARE CORPORATION,Information Systems Maintenance
FCO,FCO,06/01/2015,"4,910,421","40,810.59",BOUYGUES CONSTRUCTION NIGERIA LIMITED,Assets Under Construction (Oracle PA Control Account)
FCO,FCO,06/01/2015,"4,911,123","28,198.25",HRG HOGG ROBINSON TRAVEL LTD,Programme Spend (Oracle Projects Control Account)
FCO,FCO,06/01/2015,"4,911,189","30,881.88",SUPPLY PLUS,Estates - Other Machinery and Equipment
FCO,FCO,06/01/2015,"4,911,201","49,536.16",INTERNATIONAL ALERT,Programme Spend (Oracle Projects Control Account)
FCO,FCO,06/01/2015,"4,911,306","40,237.23",CENTRE UA NGO,Programme Spend (Oracle Projects Control Account)
FCO,FCO,06/01/2015,"4,911,343","66,500",COLLIERS,Estates Management Services
FCO,FCO,06/01/2015,"4,911,523","41,249.89",NORTHERN IRELAND CO OPERATION OVERSEAS NI CO LIMITED,Programme Spend (Oracle Projects Control Account)
FCO,FCO,06/01/2015,"4,911,528","31,078.92",PHOTOGRAPHIC SERVICES,Programme Spend (Oracle Projects Control Account)
FCO,FCO,07/01/2015,"4,902,642","45,806.95",ICRIER-INDIAN COUNCIL FOR RESEARCH ON INTERNATIONAL ECONOMIC RELATIONS,Programme Spend (Oracle Projects Control Account)
FCO,FCO,07/01/2015,"4,902,971","51,382.02",FOUNDATION FOR ACADEMIC EXCELLANCE AND ACCESS (FAEA),Programme Spend (Oracle Projects Control Account)
FCO,FCO,07/01/2015,"4,903,889","329,128",FCO SERVICES,Air Freight Dip Bags - Freight & Clearance Charges
FCO,FCO,07/01/2015,"4,903,918","25,692",FCO SERVICES,Freight & Customs Clearance Charges
FCO,FCO,07/01/2015,"4,903,921","25,038.28",FCO SERVICES,Postal Services
FCO,FCO,07/01/2015,"4,905,605","36,983.56",NATIONAL JUDGES COLLEGE TRAINING CENTRE,Programme Spend (Oracle Projects Control Account)
FCO,FCO,07/01/2015,"4,909,418","32,661",CHARITY COMMISSION ENGLAND AND WALES,Programme Spend (Oracle Projects Control Account)
FCO,FCO,07/01/2015,"4,909,458","272,186.60",COMPUTACENTER UK LTD,Assets Under Construction (Oracle PA Control Account)
FCO,FCO,07/01/2015,"4,909,470","125,000",UNIVERSITY OF OXFORD,Programme Spend (Oracle Projects Control Account)
FCO,FCO,07/01/2015,"4,910,163","338,180",DEFENCE BUSINESS SERVICES FINANCE,Programme Spend (Oracle Projects Control Account)
FCO,FCO,07/01/2015,"4,910,288","41,357",UNICEF,Programme Spend (Oracle Projects Control Account)
FCO,FCO,07/01/2015,"4,911,060","92,760",VALUATION OFFICE AGENCY,Estates Management Services
FCO,FCO,07/01/2015,"4,912,724","61,526.97",PROJECT HOUGOUMONT LTD,Programme Spend (Oracle Projects Control Account)
FCO,FCO,07/01/2015,"4,912,838","81,720",CROWN AGENTS FINANCIAL SERVICES LTD,Programme Spend (Oracle Projects Control Account)
FCO,FCO,07/01/2015,"4,913,874","32,955.43",ADVICE ON INDIVIDUAL RIGHTS IN EUROPE,Programme Spend (Oracle Projects Control Account)
FCO,FCO,08/01/2015,"4,906,773","26,382.32",G4S SECURITY SERIVICES GHANA LIMITED,Local Guards
FCO,FCO,08/01/2015,"4,914,009","25,988",INFRASTRUCTURE UK,Programme Spend (Oracle Projects Control Account)
FCO,FCO,08/01/2015,"4,914,074","768,334",SIREN ASSOCIATES LTD,Programme Spend (Oracle Projects Control Account)
FCO,FCO,08/01/2015,"4,914,172","33,453.53",UNIVERSITY OF NOTTINGHAM,Programme Spend (Oracle Projects Control Account)
FCO,FCO,08/01/2015,"4,914,177","1,728,245",MACE LIMITED,Assets Under Construction (Oracle PA Control Account)
FCO,FCO,08/01/2015,"4,914,552","103,796.50",ADAM SMITH INTERNATIONAL,Programme Spend (Oracle Projects Control Account)
FCO,FCO,08/01/2015,"4,914,586","410,612.50",RISK ADVISORY GROUP PLC,Programme Spend (Oracle Projects Control Account)
FCO,FCO,08/01/2015,"4,914,619","142,277",OROSTREAM INTERNATIONAL CONTRACTS LTD,Assets Under Construction (Oracle PA Control Account)
FCO,FCO,09/01/2015,"4,886,163","25,000",LIFE AND PEACE INSTITUTE,Programme Spend (Oracle Projects Control Account)
FCO,FCO,09/01/2015,"4,910,170","140,000",NORDIC INTERNATIONAL SUPPORT FOUNDATION,Programme Spend (Oracle Projects Control Account)
FCO,FCO,09/01/2015,"4,912,860","170,639.10",MSECURE LIMITED,Assets Under Construction (Oracle PA Control Account)
FCO,FCO,09/01/2015,"4,912,862","465,032.90",MSECURE LIMITED,Assets Under Construction (Oracle PA Control Account)
FCO,FCO,09/01/2015,"4,913,741","84,602.52",THE CITIZENS ARCHIVE OF PAKISTAN,Programme Spend (Oracle Projects Control Account)
FCO,FCO,09/01/2015,"4,914,125","882,923.70",GARDA WORLD LTD,UK Mobile Guarding Contract overseas
FCO,FCO,09/01/2015,"4,915,406","44,211",BIDWELLS,Construction Project more than £10k
FCO,FCO,09/01/2015,"4,915,502","158,413.60",CONTROL RISKS GROUP,UK Mobile Guarding Contract overseas
FCO,FCO,09/01/2015,"4,915,530","31,470",LONDON SCHOOL OF ECONOMICS AND POLITICAL SCIENCE,Specialist Training (Devolved)
FCO,FCO,09/01/2015,"4,915,566","28,152.59",COGENT ELECTRICAL SERVICES LTD FORM WES,Assets Under Construction (Oracle PA Control Account)
FCO,FCO,09/01/2015,"4,915,574","36,250",STRATEGIC INITIATIVE FOR WOMEN IN THE HORN OF AFRICA,Programme Spend (Oracle Projects Control Account)
FCO,FCO,12/01/2015,"4,915,570","25,395",RTS COMMUNICATIONS LTD,Selling Into Wider Markets Expenditure
FCO,FCO,12/01/2015,"4,917,913","29,534",MANCHESTER CITY COUNCIL,Programme Spend (Oracle Projects Control Account)
FCO,FCO,13/01/2015,"4,893,445","-796,160",MSECURE LIMITED,Assets Under Construction (Oracle PA Control Account)
FCO,FCO,13/01/2015,"4,914,536","38,521.85",RANGER PROTECTION AND SECURITY COMPANY LTD,Local Guards
FCO,FCO,13/01/2015,"4,915,449","31,090.51",UNIVERSITY OF VENDA,Programme Spend (Oracle Projects Control Account)
FCO,FCO,13/01/2015,"4,915,576","106,603.60",ADAM SMITH INTERNATIONAL,Recharge Suspense Account (Oracle PA Control Account)
FCO,FCO,13/01/2015,"4,918,195","50,000",CAMBRIDGE CONSULTANTS,Assets Under Construction (Oracle PA Control Account)
FCO,FCO,13/01/2015,"4,918,206","35,020.49",LANGUAGE SERVICES DIRECT,Language Tuition: Essential
FCO,FCO,13/01/2015,"4,918,297","50,825.27",GLOBAL PARTNERS GOVERNANCE PRACTICE LTD,Programme Spend (Oracle Projects Control Account)
FCO,FCO,13/01/2015,"4,918,563","202,801.90",CATHOLIC RELIEF SERVICES,Programme Spend (Oracle Projects Control Account)
FCO,FCO,13/01/2015,"4,918,644","41,901.19",PERMANENT COURT OF ARBITRATION,Legal Consultancy
FCO,FCO,13/01/2015,"4,919,366","43,636",CONSOLIDATED PR LTD,Public Relations
FCO,FCO,13/01/2015,"4,919,369","45,718",ARARAT CONSTRUCTION PVT LTD CO,Construction Project more than £10k
FCO,FCO,14/01/2015,"4,903,791","-81,567.11",FCO SERVICES,Assets Under Construction (Oracle PA Control Account)
FCO,FCO,14/01/2015,"4,903,793","-34,214.65",FCO SERVICES,Assets Under Construction (Oracle PA Control Account)
FCO,FCO,14/01/2015,"4,903,887","27,676.78",FCO SERVICES,Air Freight Dip Bags - Freight & Clearance Charges
FCO,FCO,14/01/2015,"4,906,934","-178,916.90",FCO SERVICES,Assets Under Construction (Oracle PA Control Account)
FCO,FCO,14/01/2015,"4,906,941","-65,118.93",FCO SERVICES,Assets Under Construction (Oracle PA Control Account)
FCO,FCO,14/01/2015,"4,906,943","-56,423.86",FCO SERVICES,Assets Under Construction (Oracle PA Control Account)
FCO,FCO,14/01/2015,"4,907,473","353,003.30",FCO SERVICES,Assets Under Construction (Oracle PA Control Account)
FCO,FCO,14/01/2015,"4,910,209","32,500.42",FCO SERVICES,Assets Under Construction (Oracle PA Control Account)
FCO,FCO,14/01/2015,"4,910,212","-32,500.42",FCO SERVICES,Assets Under Construction (Oracle PA Control Account)
FCO,FCO,14/01/2015,"4,910,221","32,500.42",FCO SERVICES,Assets Under Construction (Oracle PA Control Account)
FCO,FCO,14/01/2015,"4,910,230","123,030.40",FCO SERVICES,Assets Under Construction (Oracle PA Control Account)
FCO,FCO,14/01/2015,"4,910,243","25,798",FCO SERVICES,Assets Under Construction (Oracle PA Control Account)
FCO,FCO,14/01/2015,"4,912,430","198,731.90",FCO SERVICES,Assets Under Construction (Oracle PA Control Account)
FCO,FCO,14/01/2015,"4,912,440","-196,558.70",FCO SERVICES,Assets Under Construction (Oracle PA Control Account)
FCO,FCO,14/01/2015,"4,912,462","-505,308.70",FCO SERVICES,Assets Under Construction (Oracle PA Control Account)
FCO,FCO,14/01/2015,"4,912,466","-79,792.80",FCO SERVICES,Assets Under Construction (Oracle PA Control Account)
FCO,FCO,14/01/2015,"4,914,021","192,700.20",FCO SERVICES,Assets Under Construction (Oracle PA Control Account)
FCO,FCO,14/01/2015,"4,914,025","33,171.38",FCO SERVICES,Assets Under Construction (Oracle PA Control Account)
FCO,FCO,14/01/2015,"4,914,176","57,094.27",FCO SERVICES,Assets Under Construction (Oracle PA Control Account)
FCO,FCO,14/01/2015,"4,914,183","36,583.56",FCO SERVICES,Assets Under Construction (Oracle PA Control Account)
FCO,FCO,14/01/2015,"4,914,185","36,173.82",FCO SERVICES,Assets Under Construction (Oracle PA Control Account)
FCO,FCO,14/01/2015,"4,914,189","32,775.29",FCO SERVICES,Assets Under Construction (Oracle PA Control Account)
FCO,FCO,14/01/2015,"4,914,192","93,116.33",FCO SERVICES,Assets Under Construction (Oracle PA Control Account)
FCO,FCO,14/01/2015,"4,914,216","82,028.57",FCO SERVICES,Assets Under Construction (Oracle PA Control Account)
FCO,FCO,14/01/2015,"4,914,225","57,734.64",FCO SERVICES,Assets Under Construction (Oracle PA Control Account)
FCO,FCO,14/01/2015,"4,914,228","154,687",FCO SERVICES,Misc Security Payments
FCO,FCO,14/01/2015,"4,914,238","95,605.85",FCO SERVICES,Assets Under Construction (Oracle PA Control Account)
FCO,FCO,14/01/2015,"4,914,242","34,982.19",FCO SERVICES,Assets Under Construction (Oracle PA Control Account)
FCO,FCO,14/01/2015,"4,914,247","154,416.80",FCO SERVICES,Assets Under Construction (Oracle PA Control Account)
FCO,FCO,14/01/2015,"4,914,255","53,992",FCO SERVICES,Assets Under Construction (Oracle PA Control Account)
FCO,FCO,14/01/2015,"4,914,264","103,591",FCO SERVICES,Assets Under Construction (Oracle PA Control Account)
FCO,FCO,14/01/2015,"4,914,270","39,581.37",FCO SERVICES,Assets Under Construction (Oracle PA Control Account)
FCO,FCO,14/01/2015,"4,914,276","38,506.14",FCO SERVICES,Assets Under Construction (Oracle PA Control Account)
FCO,FCO,14/01/2015,"4,914,281","35,602",FCO SERVICES,Assets Under Construction (Oracle PA Control Account)
FCO,FCO,14/01/2015,"4,914,289","30,421",FCO SERVICES,Assets Under Construction (Oracle PA Control Account)
FCO,FCO,14/01/2015,"4,914,313","60,153",FCO SERVICES,Assets Under Construction (Oracle PA Control Account)
FCO,FCO,14/01/2015,"4,914,327","66,483.28",FCO SERVICES,Assets Under Construction (Oracle PA Control Account)
FCO,FCO,14/01/2015,"4,914,330","139,656",FCO SERVICES,Misc Security Payments
FCO,FCO,14/01/2015,"4,914,339","86,263",FCO SERVICES,Assets Under Construction (Oracle PA Control Account)
FCO,FCO,14/01/2015,"4,914,347","26,261",FCO SERVICES,Assets Under Construction (Oracle PA Control Account)
FCO,FCO,14/01/2015,"4,914,352","34,420",FCO SERVICES,Assets Under Construction (Oracle PA Control Account)
FCO,FCO,14/01/2015,"4,914,377","129,311.30",FCO SERVICES,Assets Under Construction (Oracle PA Control Account)
FCO,FCO,14/01/2015,"4,916,467","-27,676.78",FCO SERVICES,Air Freight Dip Bags - Freight & Clearance Charges
FCO,FCO,14/01/2015,"4,916,473","-135,923.70",FCO SERVICES,IT/IS Consultancy
FCO,FCO,14/01/2015,"4,916,583","27,676.78",FCO SERVICES,Air Freight Dip Bags - Freight & Clearance Charges
FCO,FCO,14/01/2015,"4,916,599","-194,176.70",FCO SERVICES,IT/IS Consultancy
FCO,FCO,14/01/2015,"4,916,610","41,063.02",HARIS ENTERPRISES PVT LTD,Local Guards
FCO,FCO,14/01/2015,"4,916,644","194,176.70",FCO SERVICES,IT/IS Consultancy
FCO,FCO,14/01/2015,"4,916,655","135,923.70",FCO SERVICES,IT/IS Consultancy
FCO,FCO,14/01/2015,"4,916,846","252,378.90",DEFENCE BUSINESS SERVICES FINANCE,Mod Guarding Services Residential
FCO,FCO,14/01/2015,"4,917,799","58,468.25",SEOUL BROADCASTING SERVICE,UKTI HQ Allocation- Marketing
FCO,FCO,14/01/2015,"4,917,877","55,645.70",RABBIS FOR HUMAN RIGHTS,Programme Spend (Oracle Projects Control Account)
FCO,FCO,14/01/2015,"4,918,120","600,578",G4S RISK MANAGEMENT LTD FORMALLY ARMOURGROUP SERVICES LTD,UK Guarding Contracts Overseas
FCO,FCO,14/01/2015,"4,918,121","981,794",G4S RISK MANAGEMENT LTD FORMALLY ARMOURGROUP SERVICES LTD,UK Guarding Contracts Overseas
FCO,FCO,14/01/2015,"4,919,511","25,000",CBRE LTD,Estates Management Services
FCO,FCO,14/01/2015,"4,919,787","48,129",FCO SERVICES,Misc Security Payments
FCO,FCO,15/01/2015,"4,895,687","124,126.10",MSECURE LIMITED,Assets Under Construction (Oracle PA Control Account)
FCO,FCO,15/01/2015,"4,898,898","238,900.30",MSECURE LIMITED,Assets Under Construction (Oracle PA Control Account)
FCO,FCO,15/01/2015,"4,921,049","27,014.88",FENIX INSIGHT LTD,Programme Spend (Oracle Projects Control Account)
FCO,FCO,15/01/2015,"4,921,056","73,104.60",S MACNEILLIE & SON LTD,Assets Under Construction (Oracle PA Control Account)
FCO,FCO,15/01/2015,"4,921,102","117,372.60",HEALIX INTERNATIONAL LTD,Fco Healthcare Scheme
FCO,FCO,16/01/2015,"4,895,627","147,050",EUROPEAN TECHNOLOGY AND TRAINING CENTRE,Programme Spend (Oracle Projects Control Account)
FCO,FCO,16/01/2015,"4,911,120","53,541.20",S MACNEILLIE & SON LTD,Assets Under Construction (Oracle PA Control Account)
FCO,FCO,16/01/2015,"4,911,129","53,541.20",S MACNEILLIE & SON LTD,Assets Under Construction (Oracle PA Control Account)
FCO,FCO,16/01/2015,"4,911,169","53,541.20",S MACNEILLIE & SON LTD,Assets Under Construction (Oracle PA Control Account)
FCO,FCO,16/01/2015,"4,911,173","53,541.20",S MACNEILLIE & SON LTD,Assets Under Construction (Oracle PA Control Account)
FCO,FCO,16/01/2015,"4,920,929","46,906.37",INTERNATIONAL MEDIA SUPPORT IMS,Programme Spend (Oracle Projects Control Account)
FCO,FCO,16/01/2015,"4,921,088","28,107.31",BRYTYJSKO POLSKIE USLUGI SP Z O O,UKTI HQ Allocation- DSO
FCO,FCO,16/01/2015,"4,922,285","229,430",GREENACRE ASSOCIATES LTD,Programme Spend (Oracle Projects Control Account)
FCO,FCO,16/01/2015,"4,922,296","795,873",DAI EUROPE LIMITED,Programme Spend (Oracle Projects Control Account)
FCO,FCO,16/01/2015,"4,922,354","215,789",NORTHERN IRELAND PUBLIC SECTORS ENTERPRISES LTD,Programme Spend (Oracle Projects Control Account)
FCO,FCO,16/01/2015,"4,922,375","119,895.50",ADAM SMITH INTERNATIONAL,Programme Spend (Oracle Projects Control Account)
FCO,FCO,16/01/2015,"4,922,390","74,101.80",S MACNEILLIE & SON LTD,Assets Under Construction (Oracle PA Control Account)
FCO,FCO,16/01/2015,"4,922,471","38,116.38",IMPERIAL COLLEGE LONDON,Programme Spend (Oracle Projects Control Account)
FCO,FCO,16/01/2015,"4,922,479","26,098.76",ADVICE ON INDIVIDUAL RIGHTS IN EUROPE,Programme Spend (Oracle Projects Control Account)
FCO,FCO,16/01/2015,"4,922,557","30,485",INSTITUTE FOR HUMAN RIGHTS AND BUSINESS,Programme Spend (Oracle Projects Control Account)
FCO,FCO,16/01/2015,"4,922,566","25,000",PUBLIC INTEREST LAWYERS LIMITED,Miscellaneous Expenditure: inc subscriptions and equipment maintenance
FCO,FCO,16/01/2015,"4,922,573","202,105.70",KELLOGG BROWN AND ROOT,Estates Management Services
FCO,FCO,19/01/2015,"4,907,244","30,181.30",POWER PROJECTS (QATAR) WLL,Rental Payments - residential
FCO,FCO,19/01/2015,"4,920,836","27,602.82",IDEAS BERHAD,Programme Spend (Oracle Projects Control Account)
FCO,FCO,19/01/2015,"4,922,056","27,035.54",ADILET LEGAL CLINIC PUBLIC FUND,Programme Spend (Oracle Projects Control Account)
FCO,FCO,19/01/2015,"4,922,060","25,984.83",CHILDREN RIGHTS DEFENDERS LEAGUE PF,Programme Spend (Oracle Projects Control Account)
FCO,FCO,19/01/2015,"4,923,619","124,442.60",KELLOGG BROWN AND ROOT,Estates Management Services
FCO,FCO,19/01/2015,"4,923,778","54,881",CONSOLIDATED PR LTD,Public Relations
FCO,FCO,19/01/2015,"4,923,801","44,473.79",GLOBAL PARTNERS GOVERNANCE PRACTICE LTD,Programme Spend (Oracle Projects Control Account)
FCO,FCO,19/01/2015,"4,924,008","121,244.80",AEGIS DEFENCE SERVICES LTD,Programme Spend (Oracle Projects Control Account)
FCO,FCO,19/01/2015,"4,924,479","145,067.20",LONG MUSEUM,UKTI HQ Allocation- Marketing
FCO,FCO,20/01/2015,"4,910,465","254,252.80",MSECURE LIMITED,Assets Under Construction (Oracle PA Control Account)
FCO,FCO,20/01/2015,"4,919,284","36,860.10",AFGHANISTAN JUSTICE ORGANIZATION,Programme Spend (Oracle Projects Control Account)
FCO,FCO,20/01/2015,"4,919,289","41,252.98",ELIXIR SOLUTIONS ,Programme Spend (Oracle Projects Control Account)
FCO,FCO,20/01/2015,"4,919,812","57,192.96",JOHN SMITH MEMORIAL TRUST,Programme Spend (Oracle Projects Control Account)
FCO,FCO,20/01/2015,"4,924,887","41,497.01",TURK SANAYICILERI VE ISADAMLARI DERNEGI,Programme Spend (Oracle Projects Control Account)
FCO,FCO,20/01/2015,"4,924,910","133,677.30",ALPHA ARMOURING PANZERUNG GMBH,Assets Under Construction (Oracle PA Control Account)
FCO,FCO,20/01/2015,"4,925,050","44,354.88",ROUTES 2 ROOTS,Programme Spend (Oracle Projects Control Account)
FCO,FCO,20/01/2015,"4,926,237","56,406.18",ENSA SEGUROS DE ANGOLA,Medical Supplies
FCO,FCO,21/01/2015,"4,894,759","-46,726.89",SECURITY SERVICES GROUP,Assets Under Construction (Oracle PA Control Account)
FCO,FCO,21/01/2015,"4,911,175","53,541.20",S MACNEILLIE & SON LTD,Assets Under Construction (Oracle PA Control Account)
FCO,FCO,21/01/2015,"4,911,183","53,541.20",S MACNEILLIE & SON LTD,Assets Under Construction (Oracle PA Control Account)
FCO,FCO,21/01/2015,"4,914,174","49,820.42",FCO SERVICES,Assets Under Construction (Oracle PA Control Account)
FCO,FCO,21/01/2015,"4,916,993","58,928.65",AKTIS STRATEGY,Programme Spend (Oracle Projects Control Account)
FCO,FCO,21/01/2015,"4,922,879","48,555.25",CLEEN FOUNDATION,Programme Spend (Oracle Projects Control Account)
FCO,FCO,21/01/2015,"4,924,620","38,594.35",ASSOCIATION FOR BEHAVIOUR AND KNOWLEDGE TRANSFORMATION (ABKT),Programme Spend (Oracle Projects Control Account)
FCO,FCO,21/01/2015,"4,926,054","29,954",CHURCH WORLD SERVICE-PAKISTAN,Programme Spend (Oracle Projects Control Account)
FCO,FCO,21/01/2015,"4,926,064","57,297.73",INTERNATIONAL PEACE COOPERATION CENTER,Programme Spend (Oracle Projects Control Account)
FCO,FCO,21/01/2015,"4,926,127","38,520.93",DIRECTORATE FOR HUMAN AND MINORITY RIGHTS,Programme Spend (Oracle Projects Control Account)
FCO,FCO,21/01/2015,"4,926,433","30,448",IRW SYSTEMS LIMITED,Information Systems Under £3000 (non-capitalised)
FCO,FCO,21/01/2015,"4,927,253","32,705.04",N A MOVING SERVICES LTD,Heavy Baggage
FCO,FCO,21/01/2015,"4,927,276","54,050.35",N A MOVING SERVICES LTD,Heavy Baggage
FCO,FCO,22/01/2015,"4,922,259","30,116.35",THE NEW EURASIA FOUNDATION,Programme Spend (Oracle Projects Control Account)
FCO,FCO,22/01/2015,"4,922,263","29,605.48",GENESIS,Programme Spend (Oracle Projects Control Account)
FCO,FCO,22/01/2015,"4,923,355","34,426.86",ARARAT CONSTRUCTION PLC,Construction Project more than £10k
FCO,FCO,22/01/2015,"4,927,451","69,147.66",TOYOTA GHANA COMPANY LIMITED,Assets Under Construction (Oracle PA Control Account)
FCO,FCO,22/01/2015,"4,927,679","33,339",IT POWER LTD,Programme Spend (Oracle Projects Control Account)
FCO,FCO,22/01/2015,"4,927,801","1,470,352",RISK ADVISORY GROUP PLC,Programme Spend (Oracle Projects Control Account)
FCO,FCO,22/01/2015,"4,927,887","26,657",MEDICA,Programme Spend (Oracle Projects Control Account)
FCO,FCO,23/01/2015,"4,903,797","114,861",AKTIS STRATEGY,Programme Spend (Oracle Projects Control Account)
FCO,FCO,23/01/2015,"4,904,982","70,479.12",ALBANY ASSOCIATES,Programme Spend (Oracle Projects Control Account)
FCO,FCO,23/01/2015,"4,906,275","49,471",PHYSICIANS FOR HUMAN RIGHTS INC,Programme Spend (Oracle Projects Control Account)
FCO,FCO,23/01/2015,"4,928,663","58,322.84",ANGUS MIDDLE EAST LLC,Construction Project more than £10k
FCO,FCO,23/01/2015,"4,928,902","159,819",PARTNERS FOR DEMOCRATIC CHANGE INTERNATIONAL,Programme Spend (Oracle Projects Control Account)
FCO,FCO,23/01/2015,"4,929,247","43,300",QUINTESSENTIALLY LIFESTYLE UK LTD,Programme Spend (Oracle Projects Control Account)
FCO,FCO,23/01/2015,"4,930,127","55,397.34",DEMOCRACY REPORTING INTERNATIONAL GMBH,Programme Spend (Oracle Projects Control Account)
FCO,FCO,26/01/2015,"4,908,973","41,997.58",BRIGHT HORIZONS FAMILY SOLUTION LTD,FCO KCS Nursery
FCO,FCO,26/01/2015,"4,926,324","36,359.51",INDUSTRIAL DEVELOPMENT AGENCY OF GUANGDONG PROVINCE,Programme Spend (Oracle Projects Control Account)
FCO,FCO,26/01/2015,"4,929,039","27,050",WRI BRASIL,Programme Spend (Oracle Projects Control Account)
FCO,FCO,26/01/2015,"4,931,406","34,159",CONSOLIDATED PR LTD,Public Relations
FCO,FCO,26/01/2015,"4,931,421","89,818.43",BBC MEDIA ACTION,Programme Spend (Oracle Projects Control Account)
FCO,FCO,26/01/2015,"4,931,422","69,329",WAR CHILD,Programme Spend (Oracle Projects Control Account)
FCO,FCO,26/01/2015,"4,931,465","56,975.72",N A MOVING SERVICES LTD,Heavy Baggage
FCO,FCO,26/01/2015,"4,931,469","25,653.95",N A MOVING SERVICES LTD,Heavy Baggage
FCO,FCO,26/01/2015,"4,931,472","29,807.76",MM ACTIV SCI-TECH COMMUNICATIONS PVT LTD,UKTI HQ Allocation- Marketing
FCO,FCO,27/01/2015,"4,917,723","92,505.08",AFGHAN WOMEN SKILLS DEVELOPMENT CENTER,Programme Spend (Oracle Projects Control Account)
FCO,FCO,27/01/2015,"4,927,051","178,030.30",THE ASIA FOUNDATION,Programme Spend (Oracle Projects Control Account)
FCO,FCO,27/01/2015,"4,927,867","195,487.60",PURSUE LTD,Programme Spend (Oracle Projects Control Account)
FCO,FCO,27/01/2015,"4,927,922","44,689.29",MADEK ENERGO,Assets Under Construction (Oracle PA Control Account)
FCO,FCO,27/01/2015,"4,928,508","500,000",AFGHANISTAN INDEPENDENT HUMAN RIGHTS COMMISSION,Programme Spend (Oracle Projects Control Account)
FCO,FCO,27/01/2015,"4,930,083","62,293.55",NORWEGIAN CHURCH AID,Programme Spend (Oracle Projects Control Account)
FCO,FCO,27/01/2015,"4,930,143","79,834.20",NATIONAL DEMOCRATIC INSTITUTE,Programme Spend (Oracle Projects Control Account)
FCO,FCO,27/01/2015,"4,931,185","42,031",TNT EXPRESS,Specialist Contractors
FCO,FCO,28/01/2015,"4,914,180","64,231.23",FCO SERVICES,Assets Under Construction (Oracle PA Control Account)
FCO,FCO,28/01/2015,"4,916,658","1,445,833",FCO SERVICES,Specialist Contractors
FCO,FCO,28/01/2015,"4,922,483","74,101.80",S MACNEILLIE & SON LTD,Security: Works Residential
FCO,FCO,28/01/2015,"4,922,490","73,104.60",S MACNEILLIE & SON LTD,Security: Works Residential
FCO,FCO,28/01/2015,"4,922,492","73,104.60",S MACNEILLIE & SON LTD,Security: Works Residential
FCO,FCO,28/01/2015,"4,922,517","73,104.60",S MACNEILLIE & SON LTD,Security: Works Residential
FCO,FCO,28/01/2015,"4,922,530","74,101.80",S MACNEILLIE & SON LTD,Security: Works Residential
FCO,FCO,28/01/2015,"4,922,535","73,104.60",S MACNEILLIE & SON LTD,Security: Works Residential
FCO,FCO,28/01/2015,"4,922,542","84,291",S MACNEILLIE & SON LTD,Security: Works Residential
FCO,FCO,28/01/2015,"4,922,548","84,291",S MACNEILLIE & SON LTD,Security: Works Residential
FCO,FCO,28/01/2015,"4,924,021","49,975",FINANCIAL TIMES LIMITED,Global License to FT.com
FCO,FCO,28/01/2015,"4,926,469","84,291",S MACNEILLIE & SON LTD,Security: Works Residential
FCO,FCO,28/01/2015,"4,929,163","28,277",SECURITY SERVICES GROUP,Misc Security Payments
FCO,FCO,28/01/2015,"4,929,259","181,586",FCO SERVICES,Misc Security Payments
FCO,FCO,28/01/2015,"4,929,286","31,405.29",FCO SERVICES,Assets Under Construction (Oracle PA Control Account)
FCO,FCO,28/01/2015,"4,929,293","83,244.13",FCO SERVICES,Construction Project more than £10k
FCO,FCO,28/01/2015,"4,929,314","35,107.38",FCO SERVICES,Assets Under Construction (Oracle PA Control Account)
FCO,FCO,28/01/2015,"4,929,320","72,742.57",FCO SERVICES,Assets Under Construction (Oracle PA Control Account)
FCO,FCO,28/01/2015,"4,929,324","80,367.71",FCO SERVICES,Assets Under Construction (Oracle PA Control Account)
FCO,FCO,28/01/2015,"4,929,337","178,487",FCO SERVICES,IT/IS Consultancy
FCO,FCO,28/01/2015,"4,929,339","33,250",FCO SERVICES,Security: Works Non-Residential
FCO,FCO,28/01/2015,"4,930,153","40,851.84",HARIS ENTERPRISES PVT LTD,Local Guards
FCO,FCO,28/01/2015,"4,930,389","36,343.05",CAMERA DE COMERT BRITANICA ROMANA,UKTI HQ Allocation- DSO
FCO,FCO,28/01/2015,"4,931,183","211,163.90",DEFENCE BUSINESS SERVICES FINANCE,Mod Guarding Services Residential
FCO,FCO,28/01/2015,"4,931,257","-169,355.40",FCO SERVICES,Assets Under Construction (Oracle PA Control Account)
FCO,FCO,28/01/2015,"4,931,261","77,132.05",FCO SERVICES,Assets Under Construction (Oracle PA Control Account)
FCO,FCO,28/01/2015,"4,931,324","31,823.84",FCO SERVICES,Air Freight Dip Bags - Freight & Clearance Charges
FCO,FCO,28/01/2015,"4,931,347","27,416.17",FCO SERVICES,Air Freight Dip Bags - Freight & Clearance Charges
FCO,FCO,28/01/2015,"4,931,349","114,545.80",FCO SERVICES,Air Freight Dip Bags - Freight & Clearance Charges
FCO,FCO,28/01/2015,"4,931,351","-57,756.20",FCO SERVICES,Assets Under Construction (Oracle PA Control Account)
FCO,FCO,28/01/2015,"4,931,360","209,399.60",FCO SERVICES,Assets Under Construction (Oracle PA Control Account)
FCO,FCO,28/01/2015,"4,931,383","117,884.70",FCO SERVICES,Air Freight Dip Bags - Freight & Clearance Charges
FCO,FCO,28/01/2015,"4,931,384","37,432.36",FCO SERVICES,Air Freight Dip Bags - Freight & Clearance Charges
FCO,FCO,28/01/2015,"4,931,386","56,283.42",FCO SERVICES,Air Freight Dip Bags - Freight & Clearance Charges
FCO,FCO,28/01/2015,"4,931,390","-44,176.75",FCO SERVICES,Assets Under Construction (Oracle PA Control Account)
FCO,FCO,28/01/2015,"4,931,400","60,365.93",FCO SERVICES,Freight & Customs Clearance Charges
FCO,FCO,28/01/2015,"4,931,401","40,548.89",FCO SERVICES,Information Systems Implementation
FCO,FCO,28/01/2015,"4,932,015","601,634",FCO SERVICES,Assets Under Construction (Oracle PA Control Account)
FCO,FCO,28/01/2015,"4,932,019","117,220",FCO SERVICES,Assets Under Construction (Oracle PA Control Account)
FCO,FCO,28/01/2015,"4,932,120","46,706.38",FCO SERVICES,IT/IS Consultancy
FCO,FCO,28/01/2015,"4,932,168","31,467",FCO SERVICES,Assets Under Construction (Oracle PA Control Account)
FCO,FCO,28/01/2015,"4,932,215","1,416,693",FCO SERVICES,Assets Under Construction (Oracle PA Control Account)
FCO,FCO,28/01/2015,"4,932,255","28,661.27",FCO SERVICES,Assets Under Construction (Oracle PA Control Account)
FCO,FCO,28/01/2015,"4,932,281","43,685",FCO SERVICES,Assets Under Construction (Oracle PA Control Account)
FCO,FCO,28/01/2015,"4,932,283","270,000",FCO SERVICES,Security: Works Non-Residential
FCO,FCO,28/01/2015,"4,932,285","306,250",FCO SERVICES,Security: Works Non-Residential
FCO,FCO,28/01/2015,"4,932,287","177,500",FCO SERVICES,Security: Works Non-Residential
FCO,FCO,28/01/2015,"4,933,316","30,862.90",AL NAHDHA INVESTMENT SHINING TOWERS,Rental Payments - residential
FCO,FCO,28/01/2015,"4,933,337","35,866.75",EMIRATES INTERNATIONAL PROPERTY SERVICES,Rental Payments - residential
FCO,FCO,28/01/2015,"4,933,342","35,866.75",EMIRATES INTERNATIONAL PROPERTY SERVICES,Rental Payments - residential
FCO,FCO,28/01/2015,"4,933,370","26,620.70",BEMIL NIGERIA LIMITED,Local Guards
FCO,FCO,28/01/2015,"4,933,554","65,349.13",ADAM SMITH INTERNATIONAL,Programme Spend (Oracle Projects Control Account)
FCO,FCO,28/01/2015,"4,933,652","93,706.50",GUNNEBO SA PTY LTD,Assets Under Construction (Oracle PA Control Account)
FCO,FCO,28/01/2015,"4,933,805","27,610",AMEC ENVIRONMENT AND INFRASTRUCTURE UK LIMITED,Programme Spend (Oracle Projects Control Account)
FCO,FCO,28/01/2015,"4,933,961","33,083.75",SECURITY SERVICES GROUP,Misc Security Payments
FCO,FCO,29/01/2015,"4,918,525","30,347.97",N A MOVING SERVICES LTD,Heavy Baggage
FCO,FCO,29/01/2015,"4,918,531","68,876.10",N A MOVING SERVICES LTD,Heavy Baggage
FCO,FCO,29/01/2015,"4,927,267","35,260.12",N A MOVING SERVICES LTD,Heavy Baggage
FCO,FCO,30/01/2015,"4,912,858","65,133.75",COMPUTACENTER UK LTD,Recruitment - Eab And Support
FCO,FCO,30/01/2015,"4,912,863","437,840",COMPUTACENTER UK LTD,IT/IS Consultancy
FCO,FCO,30/01/2015,"4,912,872","68,920",COMPUTACENTER UK LTD,IT/IS Consultancy
FCO,FCO,30/01/2015,"4,912,876","159,882.60",COMPUTACENTER UK LTD,IT/IS Consultancy
FCO,FCO,30/01/2015,"4,913,980","166,742.40",COMPUTACENTER UK LTD,Recruitment - Eab And Support
FCO,FCO,30/01/2015,"4,935,295","679,726.70",WESTMINSTER FOUNDATION FOR DEMOCRACY,Programme Spend (Oracle Projects Control Account)
FCO,FCO,30/01/2015,"4,936,183","109,738.10",NO PEACE WITHOUT JUSTICE,Programme Spend (Oracle Projects Control Account)
FCO,FCO,30/01/2015,"4,936,377","30,161.15",N A MOVING SERVICES LTD,Heavy Baggage
FCO,FCO,30/01/2015,"4,936,417","47,276.56",ETANA,Programme Spend (Oracle Projects Control Account)
